Body name,Directorate,Service Area Categorisation,Supplier Name,Date,Net Amount,Purpose of Spend,Procurement Classification: ProClass Label
Solihull MBC,Economy and Infrastructure,Planning & Development Services,Adobe Stock,18/03/2022,19.99,Advertising/Publicity/Promotion,271430 - Information Communication Technology - Software - Commercial Off-The-Shelf
Solihull MBC,Adult Social Care,Adult Social Care,Aids 4 Mobility,25/04/2022,39.75,Purchase Card Statement Summary,169999 - Domestic Goods - Not Elsewhere Classified
Solihull MBC,Adult Social Care,Adult Social Care,Aldi,14/03/2022,3.65,Catering Provisions,111200 - Catering - Food & Beverages
Solihull MBC,Adult Social Care,Adult Social Care,Aldi,25/04/2022,5.44,Purchase Card Statement Summary,111200 - Catering - Food & Beverages
Solihull MBC,Adult Social Care,Adult Social Care,Aldi,25/04/2022,5.56,Purchase Card Statement Summary,111200 - Catering - Food & Beverages
Solihull MBC,Adult Social Care,Adult Social Care,Aldi,07/03/2022,6.05,Catering Provisions,111200 - Catering - Food & Beverages
Solihull MBC,Adult Social Care,Adult Social Care,Aldi,14/03/2022,6.72,Cleaning,111200 - Catering - Food & Beverages
Solihull MBC,Adult Social Care,Adult Social Care,Aldi,04/03/2022,8.42,Cleaning,111200 - Catering - Food & Beverages
Solihull MBC,Adult Social Care,Adult Social Care,Aldi,25/04/2022,18.61,Purchase Card Statement Summary,111200 - Catering - Food & Beverages
Solihull MBC,Adult Social Care,Adult Social Care,Aldi,25/04/2022,19.17,Purchase Card Statement Summary,111200 - Catering - Food & Beverages
Solihull MBC,Adult Social Care,Adult Social Care,Aldi,25/04/2022,19.64,Purchase Card Statement Summary,111200 - Catering - Food & Beverages
Solihull MBC,Adult Social Care,Adult Social Care,Aldi,25/04/2022,20.41,Purchase Card Statement Summary,111200 - Catering - Food & Beverages
Solihull MBC,Adult Social Care,Adult Social Care,Aldi,05/03/2022,27.61,Catering Provisions,111200 - Catering - Food & Beverages
Solihull MBC,Public Health,Central Services to the Public,Aldi,25/04/2022,28.90,Purchase Card Statement Summary,111200 - Catering - Food & Beverages
Solihull MBC,Adult Social Care,Adult Social Care,Aldi,04/03/2022,28.97,Catering Provisions,111200 - Catering - Food & Beverages
Solihull MBC,Adult Social Care,Adult Social Care,Aldi,14/03/2022,36.76,Catering Provisions,111200 - Catering - Food & Beverages
Solihull MBC,Adult Social Care,Adult Social Care,Aldi,14/03/2022,43.10,Catering Provisions,111200 - Catering - Food & Beverages
Solihull MBC,Adult Social Care,Adult Social Care,Aldi,25/04/2022,70.15,Purchase Card Statement Summary,111200 - Catering - Food & Beverages
Solihull MBC,Adult Social Care,Adult Social Care,Aldi,25/04/2022,71.40,Purchase Card Statement Summary,111200 - Catering - Food & Beverages
Solihull MBC,Adult Social Care,Adult Social Care,Aldi,25/04/2022,97.86,Purchase Card Statement Summary,111200 - Catering - Food & Beverages
Solihull MBC,Adult Social Care,Adult Social Care,Aldi,25/04/2022,131.39,Purchase Card Statement Summary,111200 - Catering - Food & Beverages
Solihull MBC,Public Health & Commissioning,Central Services to the Public,Aldi 11 772,15/03/2022,4.72,Materials,111200 - Catering - Food & Beverages
Solihull MBC,Public Health & Commissioning,Central Services to the Public,Aldi 11 772,15/03/2022,10.35,Materials,111200 - Catering - Food & Beverages
Solihull MBC,Adult Social Care,Adult Social Care,Aldi 11 772,21/03/2022,129.75,Catering Provisions,111200 - Catering - Food & Beverages
Solihull MBC,Adult Social Care,Adult Social Care,Aldi 2 772,14/03/2022,0.34,Catering Provisions,111200 - Catering - Food & Beverages
Solihull MBC,Adult Social Care,Adult Social Care,Aldi 2 772,07/03/2022,3.72,Catering Provisions,111200 - Catering - Food & Beverages
Solihull MBC,Adult Social Care,Adult Social Care,Aldi 2 772,25/04/2022,6.12,Purchase Card Statement Summary,111200 - Catering - Food & Beverages
Solihull MBC,Adult Social Care,Adult Social Care,Aldi 2 772,28/03/2022,12.77,Catering Provisions,111200 - Catering - Food & Beverages
Solihull MBC,Adult Social Care,Adult Social Care,Aldi 2 772,25/04/2022,22.40,Purchase Card Statement Summary,111200 - Catering - Food & Beverages
Solihull MBC,Adult Social Care,Adult Social Care,Aldi 2 772,25/04/2022,42.33,Purchase Card Statement Summary,111200 - Catering - Food & Beverages
Solihull MBC,Adult Social Care,Adult Social Care,Aldi 2 772,19/03/2022,44.86,Catering Provisions,111200 - Catering - Food & Beverages
Solihull MBC,Adult Social Care,Adult Social Care,Aldi 2 772,25/04/2022,50.47,Purchase Card Statement Summary,111200 - Catering - Food & Beverages
Solihull MBC,Adult Social Care,Adult Social Care,Aldi 2 772,21/03/2022,71.25,Catering Provisions,111200 - Catering - Food & Beverages
Solihull MBC,Adult Social Care,Adult Social Care,Aldi 2 772,25/04/2022,91.89,Purchase Card Statement Summary,111200 - Catering - Food & Beverages
Solihull MBC,Adult Social Care,Adult Social Care,Aldi 2 772,25/04/2022,126.11,Purchase Card Statement Summary,111200 - Catering - Food & Beverages
Solihull MBC,Adult Social Care,Adult Social Care,Aldi Stores Ltd,14/03/2022,14.99,Other Premise Costs,111200 - Catering - Food & Beverages
Solihull MBC,Adult Social Care,Adult Social Care,Aldi Stores Ltd,07/03/2022,20.82,Other Premise Costs,111200 - Catering - Food & Beverages
Solihull MBC,Adult Social Care,Adult Social Care,Aldi Stores Ltd,14/03/2022,68.40,Catering Provisions,111200 - Catering - Food & Beverages
Solihull MBC,Adult Social Care,Adult Social Care,Aldi Stores Ltd,14/03/2022,104.89,Catering Provisions,111200 - Catering - Food & Beverages
Solihull MBC,Adult Social Care,Adult Social Care,Aldi Stores Ltd,28/03/2022,139.69,Catering Provisions,111200 - Catering - Food & Beverages
Solihull MBC,Childrens Services & Skills,Children & Education Services,Allsole,25/04/2022,43.99,Purchase Card Statement Summary,141000 - Clothing - Children & Adults
Solihull MBC,Adult Social Care,Adult Social Care,Amazon Music,25/04/2022,7.99,Purchase Card Statement Summary,171111 - Education - Audio Visual
Solihull MBC,Economy and Infrastructure,Other Housing Services,Amazon Prime,25/04/2022,7.99,Purchase Card Statement Summary,161000 - Domestic Goods - Commercial
Solihull MBC,Economy and Infrastructure - HRA,Housing Revenue Account,Amazon Prime,25/04/2022,7.99,General Debtors,161000 - Domestic Goods - Commercial
Solihull MBC,Resources,Central Services to the Public,Amazon.co.uk,25/04/2022,5.49,Purchase Card Statement Summary,171114 - Education - Literature
Solihull MBC,Childrens Services & Skills,Children & Education Services,Amazon.co.uk,25/04/2022,14.86,Purchase Card Statement Summary,171114 - Education - Literature
Solihull MBC,Adult Social Care,Adult Social Care,Amazon.co.uk,25/04/2022,16.98,Purchase Card Statement Summary,171114 - Education - Literature
Solihull MBC,Economy and Infrastructure - HRA,Housing Revenue Account,Amazon.co.uk,25/04/2022,18.35,General Debtors,171114 - Education - Literature
Solihull MBC,Economy and Infrastructure - HRA,Housing Revenue Account,Amazon.co.uk,25/04/2022,21.75,General Debtors,171114 - Education - Literature
Solihull MBC,Childrens Services & Skills,Children & Education Services,Amazon.co.uk,25/04/2022,24.94,Purchase Card Statement Summary,171114 - Education - Literature
Solihull MBC,Economy and Infrastructure - HRA,Housing Revenue Account,Amazon.co.uk,25/04/2022,27.08,General Debtors,171114 - Education - Literature
Solihull MBC,Economy and Infrastructure - HRA,Housing Revenue Account,Amazon.co.uk,25/04/2022,29.99,General Debtors,171114 - Education - Literature
Solihull MBC,Children's Services - DSG Central.,Children & Education Services,Amazon.co.uk,10/03/2022,31.38,Materials,161000 - Domestic Goods - Commercial
Solihull MBC,Adult Social Care,Adult Social Care,Amazon.co.uk,25/04/2022,39.99,Purchase Card Statement Summary,171114 - Education - Literature
Solihull MBC,Economy and Infrastructure - HRA,Housing Revenue Account,Amazon.co.uk,25/04/2022,40.00,General Debtors,171114 - Education - Literature
Solihull MBC,Economy and Infrastructure - HRA,Housing Revenue Account,Amazon.co.uk,25/04/2022,40.00,General Debtors,171114 - Education - Literature
Solihull MBC,Economy and Infrastructure - HRA,Housing Revenue Account,Amazon.co.uk,25/04/2022,40.00,General Debtors,171114 - Education - Literature
Solihull MBC,Economy and Infrastructure - HRA,Housing Revenue Account,Amazon.co.uk,25/04/2022,40.00,General Debtors,171114 - Education - Literature
Solihull MBC,Economy and Infrastructure - HRA,Housing Revenue Account,Amazon.co.uk,25/04/2022,40.00,General Debtors,171114 - Education - Literature
Solihull MBC,Economy and Infrastructure - HRA,Housing Revenue Account,Amazon.co.uk,25/04/2022,40.00,General Debtors,171114 - Education - Literature
Solihull MBC,Economy and Infrastructure - HRA,Housing Revenue Account,Amazon.co.uk,25/04/2022,40.00,General Debtors,171114 - Education - Literature
Solihull MBC,Economy and Infrastructure - HRA,Housing Revenue Account,Amazon.co.uk,25/04/2022,40.00,General Debtors,171114 - Education - Literature
Solihull MBC,Economy and Infrastructure - HRA,Housing Revenue Account,Amazon.co.uk,25/04/2022,40.00,General Debtors,171114 - Education - Literature
Solihull MBC,Economy and Infrastructure - HRA,Housing Revenue Account,Amazon.co.uk,25/04/2022,40.00,General Debtors,171114 - Education - Literature
Solihull MBC,Economy and Infrastructure - HRA,Housing Revenue Account,Amazon.co.uk,25/04/2022,40.00,General Debtors,171114 - Education - Literature
Solihull MBC,Economy and Infrastructure - HRA,Housing Revenue Account,Amazon.co.uk,25/04/2022,40.00,General Debtors,171114 - Education - Literature
Solihull MBC,Economy and Infrastructure - HRA,Housing Revenue Account,Amazon.co.uk,25/04/2022,40.00,General Debtors,171114 - Education - Literature
Solihull MBC,Adult Social Care,Adult Social Care,Amazon.co.uk,25/04/2022,50.00,Purchase Card Statement Summary,171114 - Education - Literature
Solihull MBC,Economy and Infrastructure - HRA,Housing Revenue Account,Amazon.co.uk,25/04/2022,75.54,General Debtors,171114 - Education - Literature
Solihull MBC,Economy and Infrastructure - HRA,Housing Revenue Account,Amazon.co.uk,25/04/2022,80.00,General Debtors,171114 - Education - Literature
Solihull MBC,Economy and Infrastructure - HRA,Housing Revenue Account,Amazon.co.uk,25/04/2022,80.00,General Debtors,171114 - Education - Literature
Solihull MBC,Economy and Infrastructure - HRA,Housing Revenue Account,Amazon.co.uk,25/04/2022,80.00,General Debtors,171114 - Education - Literature
Solihull MBC,Economy and Infrastructure - HRA,Housing Revenue Account,Amazon.co.uk,25/04/2022,80.00,General Debtors,171114 - Education - Literature
Solihull MBC,Economy and Infrastructure - HRA,Housing Revenue Account,Amazon.co.uk,25/04/2022,80.00,General Debtors,171114 - Education - Literature
Solihull MBC,Economy and Infrastructure - HRA,Housing Revenue Account,Amazon.co.uk,25/04/2022,80.00,General Debtors,171114 - Education - Literature
Solihull MBC,Economy and Infrastructure - HRA,Housing Revenue Account,Amazon.co.uk,25/04/2022,80.00,General Debtors,171114 - Education - Literature
Solihull MBC,Economy and Infrastructure - HRA,Housing Revenue Account,Amazon.co.uk,25/04/2022,80.00,General Debtors,171114 - Education - Literature
Solihull MBC,Economy and Infrastructure - HRA,Housing Revenue Account,Amazon.co.uk,25/04/2022,80.00,General Debtors,171114 - Education - Literature
Solihull MBC,Economy and Infrastructure - HRA,Housing Revenue Account,Amazon.co.uk,25/04/2022,80.00,General Debtors,171114 - Education - Literature
Solihull MBC,Economy and Infrastructure - HRA,Housing Revenue Account,Amazon.co.uk,25/04/2022,80.00,General Debtors,171114 - Education - Literature
Solihull MBC,Economy and Infrastructure - HRA,Housing Revenue Account,Amazon.co.uk,25/04/2022,80.00,General Debtors,171114 - Education - Literature
Solihull MBC,Economy and Infrastructure - HRA,Housing Revenue Account,Amazon.co.uk,25/04/2022,80.00,General Debtors,171114 - Education - Literature
Solihull MBC,Economy and Infrastructure - HRA,Housing Revenue Account,Amazon.co.uk,25/04/2022,80.00,General Debtors,171114 - Education - Literature
Solihull MBC,Economy and Infrastructure - HRA,Housing Revenue Account,Amazon.co.uk,25/04/2022,80.00,General Debtors,171114 - Education - Literature
Solihull MBC,Economy and Infrastructure - HRA,Housing Revenue Account,Amazon.co.uk,25/04/2022,80.00,General Debtors,171114 - Education - Literature
Solihull MBC,Economy and Infrastructure - HRA,Housing Revenue Account,Amazon.co.uk,25/04/2022,80.00,General Debtors,171114 - Education - Literature
Solihull MBC,Economy and Infrastructure - HRA,Housing Revenue Account,Amazon.co.uk,25/04/2022,80.00,General Debtors,171114 - Education - Literature
Solihull MBC,Economy and Infrastructure - HRA,Housing Revenue Account,Amazon.co.uk,25/04/2022,80.00,General Debtors,171114 - Education - Literature
Solihull MBC,Economy and Infrastructure - HRA,Housing Revenue Account,Amazon.co.uk,25/04/2022,80.00,General Debtors,171114 - Education - Literature
Solihull MBC,Economy and Infrastructure - HRA,Housing Revenue Account,Amazon.co.uk,25/04/2022,80.00,General Debtors,171114 - Education - Literature
Solihull MBC,Economy and Infrastructure - HRA,Housing Revenue Account,Amazon.co.uk,25/04/2022,80.00,General Debtors,171114 - Education - Literature
Solihull MBC,Economy and Infrastructure - HRA,Housing Revenue Account,Amazon.co.uk,25/04/2022,92.99,General Debtors,171114 - Education - Literature
Solihull MBC,Economy and Infrastructure - HRA,Housing Revenue Account,Amazon.co.uk,25/04/2022,100.00,General Debtors,171114 - Education - Literature
Solihull MBC,Economy and Infrastructure,Environmental and Regulatory Services,Amazon.co.uk,25/04/2022,477.20,Purchase Card Statement Summary,171114 - Education - Literature
Solihull MBC,Childrens Services & Skills,Children & Education Services,Amz,25/04/2022,-29.40,Purchase Card Statement Summary,161000 - Domestic Goods - Commercial
Solihull MBC,Adult Social Care,Adult Social Care,Amz,25/04/2022,-27.97,Purchase Card Statement Summary,161000 - Domestic Goods - Commercial
Solihull MBC,Adult Social Care,Adult Social Care,Amz,25/04/2022,-25.95,Purchase Card Statement Summary,161000 - Domestic Goods - Commercial
Solihull MBC,Adult Social Care,Adult Social Care,Amz,25/04/2022,-15.29,Purchase Card Statement Summary,161000 - Domestic Goods - Commercial
Solihull MBC,Adult Social Care,Adult Social Care,Amz,25/04/2022,-4.75,Purchase Card Statement Summary,161000 - Domestic Goods - Commercial
Solihull MBC,Childrens Services & Skills,Children & Education Services,Amz*Amazon.co.uk,25/04/2022,-199.99,Purchase Card Statement Summary,161000 - Domestic Goods - Commercial
Solihull MBC,Adult Social Care,Adult Social Care,Amz*Bemma,25/04/2022,-23.94,Purchase Card Statement Summary,161000 - Domestic Goods - Commercial
Solihull MBC,Children's Services & Skills,Children & Education Services,Amznmktplace,04/03/2022,4.26,Officers Expenses,161000 - Domestic Goods - Commercial
Solihull MBC,Adult Social Care,Adult Social Care,Amznmktplace,25/04/2022,4.95,Purchase Card Statement Summary,161000 - Domestic Goods - Commercial
Solihull MBC,Childrens Services & Skills,Children & Education Services,Amznmktplace,25/04/2022,5.64,Purchase Card Statement Summary,161000 - Domestic Goods - Commercial
Solihull MBC,Adult Social Care,Adult Social Care,Amznmktplace,25/04/2022,6.49,Purchase Card Statement Summary,161000 - Domestic Goods - Commercial
Solihull MBC,Childrens Services & Skills,Children & Education Services,Amznmktplace,25/04/2022,6.99,Purchase Card Statement Summary,161000 - Domestic Goods - Commercial
Solihull MBC,Public Health,Adult Social Care,Amznmktplace,25/04/2022,8.99,Purchase Card Statement Summary,161000 - Domestic Goods - Commercial
Solihull MBC,Adult Social Care,Adult Social Care,Amznmktplace,25/04/2022,8.99,Purchase Card Statement Summary,161000 - Domestic Goods - Commercial
Solihull MBC,Adult Social Care,Adult Social Care,Amznmktplace,25/04/2022,10.09,Purchase Card Statement Summary,161000 - Domestic Goods - Commercial
Solihull MBC,Childrens Services & Skills,Children & Education Services,Amznmktplace,25/04/2022,11.36,Purchase Card Statement Summary,161000 - Domestic Goods - Commercial
Solihull MBC,Childrens Services & Skills,Children & Education Services,Amznmktplace,25/04/2022,12.00,Purchase Card Statement Summary,161000 - Domestic Goods - Commercial
Solihull MBC,Childrens Services & Skills,Children & Education Services,Amznmktplace,25/04/2022,12.82,Purchase Card Statement Summary,161000 - Domestic Goods - Commercial
Solihull MBC,Childrens Services & Skills,Children & Education Services,Amznmktplace,25/04/2022,13.33,Purchase Card Statement Summary,161000 - Domestic Goods - Commercial
Solihull MBC,Childrens Services & Skills,Children & Education Services,Amznmktplace,25/04/2022,13.99,Purchase Card Statement Summary,161000 - Domestic Goods - Commercial
Solihull MBC,Adult Social Care,Adult Social Care,Amznmktplace,25/04/2022,14.99,Purchase Card Statement Summary,161000 - Domestic Goods - Commercial
Solihull MBC,Adult Social Care,Adult Social Care,Amznmktplace,25/04/2022,15.29,Purchase Card Statement Summary,161000 - Domestic Goods - Commercial
Solihull MBC,Childrens Services & Skills,Children & Education Services,Amznmktplace,25/04/2022,15.98,Purchase Card Statement Summary,161000 - Domestic Goods - Commercial
Solihull MBC,Adult Social Care,Adult Social Care,Amznmktplace,25/04/2022,17.50,Purchase Card Statement Summary,161000 - Domestic Goods - Commercial
Solihull MBC,Childrens Services & Skills,Children & Education Services,Amznmktplace,25/04/2022,18.54,Purchase Card Statement Summary,161000 - Domestic Goods - Commercial
Solihull MBC,Childrens Services & Skills,Children & Education Services,Amznmktplace,25/04/2022,18.59,Purchase Card Statement Summary,161000 - Domestic Goods - Commercial
Solihull MBC,Adult Social Care,Adult Social Care,Amznmktplace,25/04/2022,18.73,Purchase Card Statement Summary,161000 - Domestic Goods - Commercial
Solihull MBC,Adult Social Care,Other Housing Services,Amznmktplace,29/03/2022,19.51,Other Fees,161000 - Domestic Goods - Commercial
Solihull MBC,Economy and Infrastructure - HRA,Housing Revenue Account,Amznmktplace,25/04/2022,22.27,General Debtors,161000 - Domestic Goods - Commercial
Solihull MBC,Economy and Infrastructure - HRA,Housing Revenue Account,Amznmktplace,25/04/2022,23.92,General Debtors,161000 - Domestic Goods - Commercial
Solihull MBC,Adult Social Care,Adult Social Care,Amznmktplace,25/04/2022,23.94,Purchase Card Statement Summary,161000 - Domestic Goods - Commercial
Solihull MBC,Adult Social Care,Adult Social Care,Amznmktplace,25/04/2022,23.94,Purchase Card Statement Summary,161000 - Domestic Goods - Commercial
Solihull MBC,Adult Social Care,Adult Social Care,Amznmktplace,25/04/2022,24.73,Purchase Card Statement Summary,161000 - Domestic Goods - Commercial
Solihull MBC,Adult Social Care,Adult Social Care,Amznmktplace,25/04/2022,24.99,Purchase Card Statement Summary,161000 - Domestic Goods - Commercial
Solihull MBC,Childrens Services & Skills,Children & Education Services,Amznmktplace,25/04/2022,27.27,Purchase Card Statement Summary,161000 - Domestic Goods - Commercial
Solihull MBC,Economy and Infrastructure,Environmental and Regulatory Services,Amznmktplace,25/04/2022,28.86,Purchase Card Statement Summary,161000 - Domestic Goods - Commercial
Solihull MBC,Adult Social Care,Adult Social Care,Amznmktplace,25/04/2022,28.98,Purchase Card Statement Summary,161000 - Domestic Goods - Commercial
Solihull MBC,Childrens Services & Skills,Children & Education Services,Amznmktplace,25/04/2022,29.89,Purchase Card Statement Summary,161000 - Domestic Goods - Commercial
Solihull MBC,Childrens Services & Skills,Children & Education Services,Amznmktplace,25/04/2022,30.94,Purchase Card Statement Summary,161000 - Domestic Goods - Commercial
Solihull MBC,Childrens Services & Skills,Children & Education Services,Amznmktplace,25/04/2022,32.34,Purchase Card Statement Summary,161000 - Domestic Goods - Commercial
Solihull MBC,Adult Social Care,Adult Social Care,Amznmktplace,25/04/2022,35.99,Purchase Card Statement Summary,161000 - Domestic Goods - Commercial
Solihull MBC,Children's Services & Skills,Children & Education Services,Amznmktplace,03/03/2022,37.49,Officers Expenses,161000 - Domestic Goods - Commercial
Solihull MBC,Economy and Infrastructure,Highways & Transport Services,Amznmktplace,25/04/2022,40.78,Purchase Card Statement Summary,161000 - Domestic Goods - Commercial
Solihull MBC,Childrens Services & Skills,Children & Education Services,Amznmktplace,25/04/2022,41.00,Purchase Card Statement Summary,161000 - Domestic Goods - Commercial
Solihull MBC,Adult Social Care,Adult Social Care,Amznmktplace,25/04/2022,44.99,Purchase Card Statement Summary,161000 - Domestic Goods - Commercial
Solihull MBC,Adult Social Care,Adult Social Care,Amznmktplace,25/04/2022,45.99,Purchase Card Statement Summary,161000 - Domestic Goods - Commercial
Solihull MBC,Resources,Central Services to the Public,Amznmktplace,14/03/2022,49.97,IT Equipment & Software,161000 - Domestic Goods - Commercial
Solihull MBC,Childrens Services & Skills,Children & Education Services,Amznmktplace,25/04/2022,49.99,Purchase Card Statement Summary,161000 - Domestic Goods - Commercial
Solihull MBC,Economy and Infrastructure,Highways & Transport Services,Amznmktplace,25/04/2022,53.98,Purchase Card Statement Summary,161000 - Domestic Goods - Commercial
Solihull MBC,Adult Social Care,Adult Social Care,Amznmktplace,25/04/2022,67.12,Purchase Card Statement Summary,161000 - Domestic Goods - Commercial
Solihull MBC,Economy and Infrastructure,Highways & Transport Services,Amznmktplace,25/04/2022,81.56,Purchase Card Statement Summary,161000 - Domestic Goods - Commercial
Solihull MBC,Economy and Infrastructure,Highways & Transport Services,Amznmktplace,25/04/2022,81.56,Purchase Card Statement Summary,161000 - Domestic Goods - Commercial
Solihull MBC,Children's Services & Skills,Children & Education Services,Amznmktplace,18/03/2022,81.80,General Office Expenses,161000 - Domestic Goods - Commercial
Solihull MBC,Childrens Services & Skills,Children & Education Services,Amznmktplace,25/04/2022,84.67,Purchase Card Statement Summary,161000 - Domestic Goods - Commercial
Solihull MBC,Economy and Infrastructure,Highways & Transport Services,Amznmktplace,25/04/2022,94.90,Purchase Card Statement Summary,161000 - Domestic Goods - Commercial
Solihull MBC,Adult Social Care,Adult Social Care,Amznmktplace,25/04/2022,96.01,Purchase Card Statement Summary,161000 - Domestic Goods - Commercial
Solihull MBC,Childrens Services & Skills,Children & Education Services,Amznmktplace,25/04/2022,99.98,Purchase Card Statement Summary,161000 - Domestic Goods - Commercial
Solihull MBC,Resources,Central Services to the Public,Amznmktplace,25/03/2022,103.23,General Office Expenses,161000 - Domestic Goods - Commercial
Solihull MBC,Adult Social Care,Adult Social Care,Amznmktplace,25/04/2022,109.76,Purchase Card Statement Summary,161000 - Domestic Goods - Commercial
Solihull MBC,Adult Social Care,Adult Social Care,Amznmktplace,25/04/2022,117.90,Purchase Card Statement Summary,161000 - Domestic Goods - Commercial
Solihull MBC,Economy and Infrastructure - HRA,Housing Revenue Account,Amznmktplace,25/04/2022,119.99,General Debtors,161000 - Domestic Goods - Commercial
Solihull MBC,Adult Social Care,Adult Social Care,Amznmktplace,25/04/2022,196.90,Purchase Card Statement Summary,161000 - Domestic Goods - Commercial
Solihull MBC,Childrens Services & Skills,Children & Education Services,Amznmktplace,25/04/2022,199.99,Purchase Card Statement Summary,161000 - Domestic Goods - Commercial
Solihull MBC,Childrens Services & Skills,Children & Education Services,Amznmktplace,25/04/2022,276.48,Purchase Card Statement Summary,161000 - Domestic Goods - Commercial
Solihull MBC,Childrens Services & Skills,Children & Education Services,Amznmktplace,25/04/2022,291.06,Purchase Card Statement Summary,161000 - Domestic Goods - Commercial
Solihull MBC,Adult Social Care,Adult Social Care,Amznmktplace,25/04/2022,293.93,Purchase Card Statement Summary,161000 - Domestic Goods - Commercial
Solihull MBC,Adult Social Care,Adult Social Care,Amznmktplace,25/04/2022,399.00,Purchase Card Statement Summary,161000 - Domestic Goods - Commercial
Solihull MBC,Adult Social Care,Adult Social Care,Amznmktplace,25/04/2022,692.80,Purchase Card Statement Summary,161000 - Domestic Goods - Commercial
Solihull MBC,Adult Social Care,Adult Social Care,Appliancedirect Co,17/03/2022,193.55,General Creditors,271430 - Information Communication Technology - Software - Commercial Off-The-Shelf
Solihull MBC,Children's Services & Skills,Children & Education Services,Argos,17/03/2022,90.37,Client Leaving Care Grant,169999 - Domestic Goods - Not Elsewhere Classified
Solihull MBC,Adult Social Care,Adult Social Care,Argos Dorridge Ins,25/04/2022,28.99,Purchase Card Statement Summary,169999 - Domestic Goods - Not Elsewhere Classified
Solihull MBC,Adult Social Care,Adult Social Care,Argos Dorridge Ins,25/04/2022,38.00,Purchase Card Statement Summary,169999 - Domestic Goods - Not Elsewhere Classified
Solihull MBC,Childrens Services & Skills,Children & Education Services,Argos Ltd,25/04/2022,-233.95,Purchase Card Statement Summary,169999 - Domestic Goods - Not Elsewhere Classified
Solihull MBC,Childrens Services & Skills,Children & Education Services,Argos Ltd,25/04/2022,-160.00,Purchase Card Statement Summary,169999 - Domestic Goods - Not Elsewhere Classified
Solihull MBC,Childrens Services & Skills,Children & Education Services,Argos Ltd,25/04/2022,-22.50,Purchase Card Statement Summary,169999 - Domestic Goods - Not Elsewhere Classified
Solihull MBC,Childrens Services & Skills,Children & Education Services,Argos Ltd,25/04/2022,-19.00,Purchase Card Statement Summary,169999 - Domestic Goods - Not Elsewhere Classified
Solihull MBC,Childrens Services & Skills,Children & Education Services,Argos Ltd,25/04/2022,-15.00,Purchase Card Statement Summary,169999 - Domestic Goods - Not Elsewhere Classified
Solihull MBC,Childrens Services & Skills,Children & Education Services,Argos Ltd,25/04/2022,-2.95,Purchase Card Statement Summary,169999 - Domestic Goods - Not Elsewhere Classified
Solihull MBC,Childrens Services & Skills,Children & Education Services,Argos Ltd,25/04/2022,14.99,Purchase Card Statement Summary,169999 - Domestic Goods - Not Elsewhere Classified
Solihull MBC,Childrens Services & Skills,Children & Education Services,Argos Ltd,25/04/2022,19.00,Purchase Card Statement Summary,169999 - Domestic Goods - Not Elsewhere Classified
Solihull MBC,Childrens Services & Skills,Children & Education Services,Argos Ltd,25/04/2022,29.95,Purchase Card Statement Summary,169999 - Domestic Goods - Not Elsewhere Classified
Solihull MBC,Childrens Services & Skills,Children & Education Services,Argos Ltd,25/04/2022,32.95,Purchase Card Statement Summary,169999 - Domestic Goods - Not Elsewhere Classified
Solihull MBC,Childrens Services & Skills,Children & Education Services,Argos Ltd,25/04/2022,33.50,Purchase Card Statement Summary,169999 - Domestic Goods - Not Elsewhere Classified
Solihull MBC,Adult Social Care,Adult Social Care,Argos Ltd,03/03/2022,46.95,General Creditors,169999 - Domestic Goods - Not Elsewhere Classified
Solihull MBC,Childrens Services & Skills,Children & Education Services,Argos Ltd,25/04/2022,52.95,Purchase Card Statement Summary,169999 - Domestic Goods - Not Elsewhere Classified
Solihull MBC,Childrens Services & Skills,Children & Education Services,Argos Ltd,25/04/2022,68.50,Purchase Card Statement Summary,169999 - Domestic Goods - Not Elsewhere Classified
Solihull MBC,Childrens Services & Skills,Children & Education Services,Argos Ltd,25/04/2022,78.00,Purchase Card Statement Summary,169999 - Domestic Goods - Not Elsewhere Classified
Solihull MBC,Economy and Infrastructure - HRA,Housing Revenue Account,Argos Ltd,25/04/2022,115.95,General Debtors,169999 - Domestic Goods - Not Elsewhere Classified
Solihull MBC,Childrens Services & Skills,Children & Education Services,Argos Ltd,25/04/2022,136.95,Purchase Card Statement Summary,169999 - Domestic Goods - Not Elsewhere Classified
Solihull MBC,Childrens Services & Skills,Children & Education Services,Argos Ltd,25/04/2022,154.25,Purchase Card Statement Summary,169999 - Domestic Goods - Not Elsewhere Classified
Solihull MBC,Childrens Services & Skills,Children & Education Services,Argos Ltd,25/04/2022,162.95,Purchase Card Statement Summary,169999 - Domestic Goods - Not Elsewhere Classified
Solihull MBC,Childrens Services & Skills,Children & Education Services,Argos Ltd,25/04/2022,199.53,Purchase Card Statement Summary,169999 - Domestic Goods - Not Elsewhere Classified
Solihull MBC,Childrens Services & Skills,Children & Education Services,Argos Ltd,25/04/2022,199.99,Purchase Card Statement Summary,169999 - Domestic Goods - Not Elsewhere Classified
Solihull MBC,Childrens Services & Skills,Children & Education Services,Argos Ltd,25/04/2022,233.95,Purchase Card Statement Summary,169999 - Domestic Goods - Not Elsewhere Classified
Solihull MBC,Childrens Services & Skills,Children & Education Services,Argos Ltd,25/04/2022,233.95,Purchase Card Statement Summary,169999 - Domestic Goods - Not Elsewhere Classified
Solihull MBC,Childrens Services & Skills,Children & Education Services,Argos Ltd,25/04/2022,234.49,Purchase Card Statement Summary,169999 - Domestic Goods - Not Elsewhere Classified
Solihull MBC,Children's Services & Skills,Children & Education Services,Argos Ltd,14/03/2022,256.62,Clients Expenses,169999 - Domestic Goods - Not Elsewhere Classified
Solihull MBC,Adult Social Care,Adult Social Care,Argos Ltd,23/03/2022,256.95,General Creditors,169999 - Domestic Goods - Not Elsewhere Classified
Solihull MBC,Childrens Services & Skills,Children & Education Services,Argos Ltd,25/04/2022,475.00,Purchase Card Statement Summary,169999 - Domestic Goods - Not Elsewhere Classified
Solihull MBC,Childrens Services & Skills,Children & Education Services,Argos Ltd,25/04/2022,607.50,Purchase Card Statement Summary,169999 - Domestic Goods - Not Elsewhere Classified
Solihull MBC,Adult Social Care,Adult Social Care,Argos Ltd,03/03/2022,649.00,General Creditors,169999 - Domestic Goods - Not Elsewhere Classified
Solihull MBC,Childrens Services & Skills,Children & Education Services,Argos Ltd,25/04/2022,652.95,Purchase Card Statement Summary,169999 - Domestic Goods - Not Elsewhere Classified
Solihull MBC,Childrens Services & Skills,Children & Education Services,Asda George Com Leeds,25/04/2022,19.95,Purchase Card Statement Summary,111200 - Catering - Food & Beverages
Solihull MBC,Adult Social Care,Adult Social Care,Asda Stores,25/04/2022,6.00,Purchase Card Statement Summary,111200 - Catering - Food & Beverages
Solihull MBC,Adult Social Care,Adult Social Care,Asda Stores 5881,17/03/2022,2.55,Catering Provisions,111200 - Catering - Food & Beverages
Solihull MBC,Adult Social Care,Adult Social Care,Asda Stores 5881,08/03/2022,3.12,Clients Expenses,111200 - Catering - Food & Beverages
Solihull MBC,Adult Social Care,Adult Social Care,Asda Stores 5881,25/04/2022,9.41,Purchase Card Statement Summary,161000 - Domestic Goods - Commercial
Solihull MBC,Adult Social Care,Adult Social Care,Asda Stores 5881,25/04/2022,15.43,Purchase Card Statement Summary,161000 - Domestic Goods - Commercial
Solihull MBC,Childrens Services & Skills,Children & Education Services,Asda Stores 5881,25/04/2022,24.19,Purchase Card Statement Summary,161000 - Domestic Goods - Commercial
Solihull MBC,Adult Social Care,Adult Social Care,Asda Stores 5881,25/03/2022,26.52,Catering Provisions,111200 - Catering - Food & Beverages
Solihull MBC,Economy and Infrastructure - HRA,Housing Revenue Account,Asda Stores 5881,25/04/2022,32.40,General Debtors,161000 - Domestic Goods - Commercial
Solihull MBC,Adult Social Care,Adult Social Care,Asda Stores 5881,25/04/2022,61.97,Purchase Card Statement Summary,161000 - Domestic Goods - Commercial
Solihull MBC,Adult Social Care,Adult Social Care,Asda Stores 5881,14/03/2022,109.14,Catering Provisions,111200 - Catering - Food & Beverages
Solihull MBC,Adult Social Care,Adult Social Care,Asda Stores 5881,07/03/2022,126.08,Catering Provisions,111200 - Catering - Food & Beverages
Solihull MBC,Adult Social Care,Adult Social Care,Asda Stores 5881,25/04/2022,132.36,Purchase Card Statement Summary,161000 - Domestic Goods - Commercial
Solihull MBC,Adult Social Care,Adult Social Care,Asda Stores 5881,25/04/2022,200.00,Purchase Card Statement Summary,161000 - Domestic Goods - Commercial
Solihull MBC,Childrens Services & Skills,Children & Education Services,Asda Stores Ltd,25/04/2022,20.00,Purchase Card Statement Summary,111200 - Catering - Food & Beverages
Solihull MBC,Childrens Services & Skills,Children & Education Services,Asda Stores Ltd,25/04/2022,20.00,Purchase Card Statement Summary,111200 - Catering - Food & Beverages
Solihull MBC,Childrens Services & Skills,Children & Education Services,Asda Stores Ltd,25/04/2022,35.00,Purchase Card Statement Summary,111200 - Catering - Food & Beverages
Solihull MBC,Childrens Services & Skills,Children & Education Services,Asda Stores Ltd,25/04/2022,40.00,Purchase Card Statement Summary,111200 - Catering - Food & Beverages
Solihull MBC,Economy and Infrastructure - HRA,Housing Revenue Account,Asda Stores Ltd,25/04/2022,40.00,General Debtors,111200 - Catering - Food & Beverages
Solihull MBC,Childrens Services & Skills,Children & Education Services,Asda Stores Ltd,25/04/2022,50.00,Purchase Card Statement Summary,111200 - Catering - Food & Beverages
Solihull MBC,Childrens Services & Skills,Children & Education Services,Asda Stores Ltd,25/04/2022,50.00,Purchase Card Statement Summary,111200 - Catering - Food & Beverages
Solihull MBC,Children's Services & Skills,Children & Education Services,Asda Stores Ltd,07/03/2022,50.00,Clients Expenses,111200 - Catering - Food & Beverages
Solihull MBC,Childrens Services & Skills,Children & Education Services,Asda Stores Ltd,25/04/2022,60.00,Purchase Card Statement Summary,111200 - Catering - Food & Beverages
Solihull MBC,Childrens Services & Skills,Children & Education Services,Asda Stores Ltd,25/04/2022,60.00,Purchase Card Statement Summary,111200 - Catering - Food & Beverages
Solihull MBC,Childrens Services & Skills,Children & Education Services,Asda Stores Ltd,25/04/2022,60.00,Purchase Card Statement Summary,111200 - Catering - Food & Beverages
Solihull MBC,Childrens Services & Skills,Children & Education Services,Asda Stores Ltd,25/04/2022,60.00,Purchase Card Statement Summary,111200 - Catering - Food & Beverages
Solihull MBC,Childrens Services & Skills,Children & Education Services,Asda Stores Ltd,25/04/2022,60.00,Purchase Card Statement Summary,111200 - Catering - Food & Beverages
Solihull MBC,Childrens Services & Skills,Children & Education Services,Asda Stores Ltd,25/04/2022,60.00,Purchase Card Statement Summary,111200 - Catering - Food & Beverages
Solihull MBC,Childrens Services & Skills,Children & Education Services,Asda Stores Ltd,25/04/2022,60.00,Purchase Card Statement Summary,111200 - Catering - Food & Beverages
Solihull MBC,Childrens Services & Skills,Children & Education Services,Asda Stores Ltd,25/04/2022,60.00,Purchase Card Statement Summary,111200 - Catering - Food & Beverages
Solihull MBC,Children's Services & Skills,Children & Education Services,Asda Stores Ltd,04/03/2022,60.00,Clients Expenses,111200 - Catering - Food & Beverages
Solihull MBC,Public Health & Commissioning,Central Services to the Public,Asda Superstore ,18/03/2022,24.80,Materials,111200 - Catering - Food & Beverages
Solihull MBC,Adult Social Care,Adult Social Care,B & Q 1047,25/04/2022,4.40,Purchase Card Statement Summary,102500 - Building Construction Materials - Timber
Solihull MBC,Public Health,Central Services to the Public,B & Q 1047,25/04/2022,95.00,Purchase Card Statement Summary,102500 - Building Construction Materials - Timber
Solihull MBC,Adult Social Care,Adult Social Care,B&M 522 - Castle Vale,25/04/2022,12.00,Purchase Card Statement Summary,169999 - Domestic Goods - Not Elsewhere Classified
Solihull MBC,Adult Social Care,Adult Social Care,B&M 537 - Minworth,25/04/2022,0.78,Purchase Card Statement Summary,169999 - Domestic Goods - Not Elsewhere Classified
Solihull MBC,Adult Social Care,Adult Social Care,B&M 537 - Minworth,25/04/2022,25.95,Purchase Card Statement Summary,169999 - Domestic Goods - Not Elsewhere Classified
Solihull MBC,Public Health & Commissioning,Central Services to the Public,B&M 537 - Minworth,18/03/2022,27.00,Materials,169999 - Domestic Goods - Not Elsewhere Classified
Solihull MBC,Adult Social Care,Adult Social Care,B&M 537 - Minworth,25/04/2022,28.59,Purchase Card Statement Summary,169999 - Domestic Goods - Not Elsewhere Classified
Solihull MBC,Adult Social Care,Adult Social Care,B&M 537 - Minworth,25/04/2022,46.48,Purchase Card Statement Summary,169999 - Domestic Goods - Not Elsewhere Classified
Solihull MBC,Adult Social Care,Adult Social Care,B&M 537 - Minworth,25/04/2022,55.37,Purchase Card Statement Summary,169999 - Domestic Goods - Not Elsewhere Classified
Solihull MBC,Adult Social Care,Adult Social Care,B&M 537 - Minworth,25/04/2022,66.08,Purchase Card Statement Summary,169999 - Domestic Goods - Not Elsewhere Classified
Solihull MBC,Adult Social Care,Adult Social Care,B&M 537 - Minworth,25/04/2022,141.84,Purchase Card Statement Summary,169999 - Domestic Goods - Not Elsewhere Classified
Solihull MBC,Adult Social Care,Adult Social Care,Beefeater40010640,25/04/2022,12.48,Purchase Card Statement Summary,261600 - Human Resources - Travel & Subsistence
Solihull MBC,Childrens Services & Skills,Children & Education Services,Bham Council Phone Pyt,25/04/2022,776.70,Purchase Card Statement Summary,209999 - Financial Services - Not Elsewhere Classified
Solihull MBC,Adult Social Care,Adult Social Care,Birmingham Leisure,25/04/2022,7.50,Purchase Card Statement Summary,291400 - Arts & Leisure Services - Sport & Fitness
Solihull MBC,Adult Social Care,Adult Social Care,Cadbury World Internet,25/04/2022,39.90,Purchase Card Statement Summary,299999 - Arts & Leisure Services - Not Elsewhere Classified
Solihull MBC,Adult Social Care,Adult Social Care,Cadbury World Internet,25/04/2022,39.90,Purchase Card Statement Summary,299999 - Arts & Leisure Services - Not Elsewhere Classified
Solihull MBC,Public Health,Adult Social Care,Careshop,25/04/2022,380.82,Purchase Card Statement Summary,161000 - Domestic Goods - Commercial
Solihull MBC,Adult Social Care,Adult Social Care,CEA Card,25/04/2022,6.00,Purchase Card Statement Summary,299999 - Arts & Leisure Services - Not Elsewhere Classified
Solihull MBC,Adult Social Care,Adult Social Care,Central Eng Coop,10/03/2022,3.00,Catering Provisions,111200 - Catering - Food & Beverages
Solihull MBC,Adult Social Care,Adult Social Care,Central Eng Coop,25/04/2022,3.20,Purchase Card Statement Summary,169999 - Domestic Goods - Not Elsewhere Classified
Solihull MBC,Adult Social Care,Adult Social Care,Cineworld NEC Birm,04/03/2022,16.89,Clients Expenses,291300 - Arts & Leisure Services - Performing Arts
Solihull MBC,Resources,Central Services to the Public,Clickatell Ltd,25/04/2022,32.64,Purchase Card Statement Summary,271699 - Information Communications Technology - Telecommunications
Solihull MBC,Resources,Central Services to the Public,Comms Express Ltd,25/04/2022,343.03,Purchase Card Statement Summary,169999 - Domestic Goods - Not Elsewhere Classified
Solihull MBC,Economy and Infrastructure - HRA,Housing Revenue Account,Costco Online UK Limited,25/04/2022,26.40,General Debtors,169999 - Domestic Goods - Not Elsewhere Classified
Solihull MBC,Childrens Services & Skills,Children & Education Services,Currys Online,25/04/2022,179.99,Purchase Card Statement Summary,169999 - Domestic Goods - Not Elsewhere Classified
Solihull MBC,Economy and Infrastructure - HRA,Housing Revenue Account,Currys Online,25/04/2022,264.00,General Debtors,169999 - Domestic Goods - Not Elsewhere Classified
Solihull MBC,Economy and Infrastructure - HRA,Housing Revenue Account,Currys Online,25/04/2022,384.00,General Debtors,169999 - Domestic Goods - Not Elsewhere Classified
Solihull MBC,Adult Social Care,Adult Social Care,Disney Plus,25/04/2022,7.99,Purchase Card Statement Summary,169999 - Domestic Goods - Not Elsewhere Classified
Solihull MBC,Adult Social Care,Adult Social Care,Dorridge Fish Bar,25/04/2022,85.70,Purchase Card Statement Summary,261600 - Human Resources - Travel & Subsistence
Solihull MBC,Childrens Services & Skills,Children & Education Services,Dragon Serviced Apts,25/04/2022,1400.00,Purchase Card Statement Summary,261000 - Human Resources - Accommodation
Solihull MBC,Childrens Services & Skills,Children & Education Services,Dragon Serviced Apts,25/04/2022,1400.00,Purchase Card Statement Summary,261000 - Human Resources - Accommodation
Solihull MBC,Childrens Services & Skills,Children & Education Services,Drawingandtalking,25/04/2022,358.80,Purchase Card Statement Summary,171011 - Education - School Services
Solihull MBC,Resources,Central Services to the Public,DRI Advancedmessaging,27/03/2022,125.00,IT Equipment & Software,271430 - Information Communication Technology - Software - Commercial Off-The-Shelf
Solihull MBC,Resources,Corporate & Democratic Core,DRI Advancedmessaging,25/03/2022,390.00,IT Equipment & Software,271430 - Information Communication Technology - Software - Commercial Off-The-Shelf
Solihull MBC,Adult Social Care,Adult Social Care,Dudleyzoo.org.uk,25/04/2022,31.80,Purchase Card Statement Summary,291100 - Arts & Leisure Services - Museums & Arts
Solihull MBC,Adult Social Care,Adult Social Care,Dudleyzoo.org.uk,25/04/2022,38.50,Purchase Card Statement Summary,291100 - Arts & Leisure Services - Museums & Arts
Solihull MBC,Childrens Services & Skills,Children & Education Services,E.On Energy Solutions,25/04/2022,342.72,Purchase Card Statement Summary,370000 - Utilities
Solihull MBC,Economy and Infrastructure - HRA,Housing Revenue Account,Easylink UK,25/04/2022,36.89,General Debtors,161000 - Domestic Goods - Commercial
Solihull MBC,Adult Social Care,Adult Social Care,Esabellas,25/04/2022,700.56,Purchase Card Statement Summary,261600 - Human Resources - Travel & Subsistence
Solihull MBC,Adult Social Care,Adult Social Care,Esabellas,25/04/2022,1000.00,Purchase Card Statement Summary,261600 - Human Resources - Travel & Subsistence
Solihull MBC,Public Health & Commissioning,Central Services to the Public,Farmfoods,15/03/2022,18.94,Materials,111200 - Catering - Food & Beverages
Solihull MBC,Resources,Central Services to the Public,Fs *Gemboxsoftware.,25/04/2022,531.95,Purchase Card Statement Summary,169999 - Domestic Goods - Not Elsewhere Classified
Solihull MBC,Childrens Services & Skills,Children & Education Services,Gen Register Office,25/04/2022,-31.50,Purchase Card Statement Summary,209999 - Financial Services - Not Elsewhere Classified
Solihull MBC,Childrens Services & Skills,Children & Education Services,Gen Register Office,25/04/2022,-31.50,Purchase Card Statement Summary,209999 - Financial Services - Not Elsewhere Classified
Solihull MBC,Children's Services & Skills,Children & Education Services,Gen Register Office,17/03/2022,-31.50,Clients Expenses,209999 - Financial Services - Not Elsewhere Classified
Solihull MBC,Childrens Services & Skills,Children & Education Services,Gen Register Office,25/04/2022,-7.50,Purchase Card Statement Summary,209999 - Financial Services - Not Elsewhere Classified
Solihull MBC,Childrens Services & Skills,Children & Education Services,Gen Register Office,25/04/2022,-7.50,Purchase Card Statement Summary,209999 - Financial Services - Not Elsewhere Classified
Solihull MBC,Children's Services & Skills,Children & Education Services,Gen Register Office,02/02/2022,-7.50,Clients Expenses,209999 - Financial Services - Not Elsewhere Classified
Solihull MBC,Childrens Services & Skills,Children & Education Services,Gen Register Office,25/04/2022,14.00,Purchase Card Statement Summary,209999 - Financial Services - Not Elsewhere Classified
Solihull MBC,Children's Services & Skills,Children & Education Services,Gen Register Office,18/03/2022,14.00,Clients Expenses,209999 - Financial Services - Not Elsewhere Classified
Solihull MBC,Children's Services & Skills,Children & Education Services,Gen Register Office,02/03/2022,35.00,Clients Expenses,209999 - Financial Services - Not Elsewhere Classified
Solihull MBC,Childrens Services & Skills,Children & Education Services,Gen Register Office,25/04/2022,38.00,Purchase Card Statement Summary,209999 - Financial Services - Not Elsewhere Classified
Solihull MBC,Childrens Services & Skills,Children & Education Services,Gen Register Office,25/04/2022,38.00,Purchase Card Statement Summary,209999 - Financial Services - Not Elsewhere Classified
Solihull MBC,Childrens Services & Skills,Children & Education Services,Gen Register Office,25/04/2022,38.00,Purchase Card Statement Summary,209999 - Financial Services - Not Elsewhere Classified
Solihull MBC,Childrens Services & Skills,Children & Education Services,Gen Register Office,25/04/2022,38.00,Purchase Card Statement Summary,209999 - Financial Services - Not Elsewhere Classified
Solihull MBC,Childrens Services & Skills,Children & Education Services,Gen Register Office,25/04/2022,38.00,Purchase Card Statement Summary,209999 - Financial Services - Not Elsewhere Classified
Solihull MBC,Childrens Services & Skills,Children & Education Services,Gen Register Office,25/04/2022,38.00,Purchase Card Statement Summary,209999 - Financial Services - Not Elsewhere Classified
Solihull MBC,Childrens Services & Skills,Children & Education Services,Gen Register Office,25/04/2022,38.00,Purchase Card Statement Summary,209999 - Financial Services - Not Elsewhere Classified
Solihull MBC,Public Health,Adult Social Care,Getsling.Com,25/04/2022,206.50,Purchase Card Statement Summary,271430 - Information Communication Technology - Software - Commercial Off-The-Shelf
Solihull MBC,Public Health,Adult Social Care,Greggs PLC,25/04/2022,5.25,Purchase Card Statement Summary,261600 - Human Resources - Travel & Subsistence
Solihull MBC,Economy and Infrastructure - HRA,Housing Revenue Account,Highstreetvouchers,25/04/2022,40.00,General Debtors,201711 - Financial Services - Grants - Non-charitable
Solihull MBC,Economy and Infrastructure - HRA,Housing Revenue Account,Highstreetvouchers,25/04/2022,40.00,General Debtors,201711 - Financial Services - Grants - Non-charitable
Solihull MBC,Economy and Infrastructure - HRA,Housing Revenue Account,Highstreetvouchers,25/04/2022,40.00,General Debtors,201711 - Financial Services - Grants - Non-charitable
Solihull MBC,Economy and Infrastructure - HRA,Housing Revenue Account,Highstreetvouchers,25/04/2022,40.00,General Debtors,201711 - Financial Services - Grants - Non-charitable
Solihull MBC,Economy and Infrastructure - HRA,Housing Revenue Account,Highstreetvouchers,25/04/2022,40.00,General Debtors,201711 - Financial Services - Grants - Non-charitable
Solihull MBC,Economy and Infrastructure - HRA,Housing Revenue Account,Highstreetvouchers,25/04/2022,40.00,General Debtors,201711 - Financial Services - Grants - Non-charitable
Solihull MBC,Economy and Infrastructure - HRA,Housing Revenue Account,Highstreetvouchers,25/04/2022,40.00,General Debtors,201711 - Financial Services - Grants - Non-charitable
Solihull MBC,Economy and Infrastructure - HRA,Housing Revenue Account,Highstreetvouchers,25/04/2022,40.00,General Debtors,201711 - Financial Services - Grants - Non-charitable
Solihull MBC,Economy and Infrastructure - HRA,Housing Revenue Account,Highstreetvouchers,25/04/2022,80.00,General Debtors,201711 - Financial Services - Grants - Non-charitable
Solihull MBC,Economy and Infrastructure - HRA,Housing Revenue Account,Highstreetvouchers,25/04/2022,80.00,General Debtors,201711 - Financial Services - Grants - Non-charitable
Solihull MBC,Economy and Infrastructure - HRA,Housing Revenue Account,Highstreetvouchers,25/04/2022,80.00,General Debtors,201711 - Financial Services - Grants - Non-charitable
Solihull MBC,Economy and Infrastructure - HRA,Housing Revenue Account,Highstreetvouchers,25/04/2022,80.00,General Debtors,201711 - Financial Services - Grants - Non-charitable
Solihull MBC,Economy and Infrastructure - HRA,Housing Revenue Account,Highstreetvouchers,25/04/2022,80.00,General Debtors,201711 - Financial Services - Grants - Non-charitable
Solihull MBC,Economy and Infrastructure - HRA,Housing Revenue Account,Highstreetvouchers,25/04/2022,80.00,General Debtors,201711 - Financial Services - Grants - Non-charitable
Solihull MBC,Economy and Infrastructure - HRA,Housing Revenue Account,Highstreetvouchers,25/04/2022,80.00,General Debtors,201711 - Financial Services - Grants - Non-charitable
Solihull MBC,Economy and Infrastructure - HRA,Housing Revenue Account,Highstreetvouchers,25/04/2022,80.00,General Debtors,201711 - Financial Services - Grants - Non-charitable
Solihull MBC,Economy and Infrastructure - HRA,Housing Revenue Account,Highstreetvouchers,25/04/2022,80.00,General Debtors,201711 - Financial Services - Grants - Non-charitable
Solihull MBC,Economy and Infrastructure - HRA,Housing Revenue Account,Highstreetvouchers,25/04/2022,80.00,General Debtors,201711 - Financial Services - Grants - Non-charitable
Solihull MBC,Economy and Infrastructure - HRA,Housing Revenue Account,Highstreetvouchers,25/04/2022,80.00,General Debtors,201711 - Financial Services - Grants - Non-charitable
Solihull MBC,Economy and Infrastructure - HRA,Housing Revenue Account,Highstreetvouchers,25/04/2022,80.00,General Debtors,201711 - Financial Services - Grants - Non-charitable
Solihull MBC,Adult Social Care,Adult Social Care,Hillfield Farm,25/04/2022,6.39,Purchase Card Statement Summary,261600 - Human Resources - Travel & Subsistence
Solihull MBC,Adult Social Care,Adult Social Care,Hillfield Farm,25/04/2022,10.78,Purchase Card Statement Summary,261600 - Human Resources - Travel & Subsistence
Solihull MBC,Childrens Services & Skills,Children & Education Services,HM Passport Newport,25/04/2022,85.00,Purchase Card Statement Summary,209999 - Financial Services - Not Elsewhere Classified
Solihull MBC,Childrens Services & Skills,Children & Education Services,HM Passport Newport,25/04/2022,85.00,Purchase Card Statement Summary,209999 - Financial Services - Not Elsewhere Classified
Solihull MBC,Childrens Services & Skills,Children & Education Services,HM Passport Office ,25/04/2022,-54.00,Purchase Card Statement Summary,209999 - Financial Services - Not Elsewhere Classified
Solihull MBC,Childrens Services & Skills,Children & Education Services,HM Passport Office ,25/04/2022,54.00,Purchase Card Statement Summary,209999 - Financial Services - Not Elsewhere Classified
Solihull MBC,Childrens Services & Skills,Children & Education Services,HM Passport Office ,25/04/2022,54.00,Purchase Card Statement Summary,209999 - Financial Services - Not Elsewhere Classified
Solihull MBC,Childrens Services & Skills,Children & Education Services,HM Passport Office ,25/04/2022,54.00,Purchase Card Statement Summary,209999 - Financial Services - Not Elsewhere Classified
Solihull MBC,Childrens Services & Skills,Children & Education Services,HM Passport Office ,25/04/2022,58.50,Purchase Card Statement Summary,209999 - Financial Services - Not Elsewhere Classified
Solihull MBC,Resources,Central Services to the Public,HMCTS Birminghamconf113,25/04/2022,149.50,Purchase Card Statement Summary,209999 - Financial Services - Not Elsewhere Classified
Solihull MBC,Resources,Central Services to the Public,HMCTS Birminghamconf113,25/04/2022,160.50,Purchase Card Statement Summary,209999 - Financial Services - Not Elsewhere Classified
Solihull MBC,Resources,Central Services to the Public,HMCTS Birminghamconf113,25/04/2022,260.50,Purchase Card Statement Summary,209999 - Financial Services - Not Elsewhere Classified
Solihull MBC,Resources,Central Services to the Public,HMCTS Birminghamconf113,25/04/2022,292.00,Purchase Card Statement Summary,209999 - Financial Services - Not Elsewhere Classified
Solihull MBC,Resources,Central Services to the Public,HMCTS Birminghamconf113,25/04/2022,338.00,Purchase Card Statement Summary,209999 - Financial Services - Not Elsewhere Classified
Solihull MBC,Adult Social Care,Adult Social Care,Hobbycraft,25/04/2022,46.80,Purchase Card Statement Summary,171110 - Education - Arts & Crafts
Solihull MBC,Public Health & Commissioning,Central Services to the Public,Home Bargains Chelmsle,15/03/2022,14.33,Materials,101400 - Building Construction Materials - General Materials
Solihull MBC,Economy and Infrastructure - HRA,Housing Revenue Account,Hotel At Booking.com,25/04/2022,-160.00,General Debtors,261000 - Human Resources - Accommodation
Solihull MBC,Economy and Infrastructure - HRA,Housing Revenue Account,Hotel At Booking.com,25/04/2022,55.00,General Debtors,261000 - Human Resources - Accommodation
Solihull MBC,Economy and Infrastructure - HRA,Housing Revenue Account,Hotel At Booking.com,25/04/2022,225.00,General Debtors,261000 - Human Resources - Accommodation
Solihull MBC,Public Health,Central Services to the Public,Hotel Ibis,25/04/2022,15.95,Purchase Card Statement Summary,261000 - Human Resources - Accommodation
Solihull MBC,Economy and Infrastructure,Central Services to the Public,Ideal Dry Cleaners,25/04/2022,159.84,Purchase Card Statement Summary,131311 - Cleaning & Janitorial - Laundry Service
Solihull MBC,Resources,Central Services to the Public,Intelligent Servers,14/03/2022,70.00,IT Equipment & Software,169999 - Domestic Goods - Not Elsewhere Classified
Solihull MBC,Public Health,Adult Social Care,Kahoot! Asa,25/04/2022,480.00,Purchase Card Statement Summary,271430 - Information Communication Technology - Software - Commercial Off-The-Shelf
Solihull MBC,Childrens Services & Skills,Children & Education Services,Lego System As,25/04/2022,4.96,Purchase Card Statement Summary,171117 - Education - Toys
Solihull MBC,Childrens Services & Skills,Children & Education Services,Lego System As,25/04/2022,17.45,Purchase Card Statement Summary,171117 - Education - Toys
Solihull MBC,Adult Social Care,Adult Social Care,Malt Shovel,25/04/2022,26.46,Purchase Card Statement Summary,261600 - Human Resources - Travel & Subsistence
Solihull MBC,Adult Social Care,Adult Social Care,McDonalds,25/04/2022,1.79,Purchase Card Statement Summary,261600 - Human Resources - Travel & Subsistence
Solihull MBC,Adult Social Care,Adult Social Care,McDonalds,25/04/2022,3.49,Purchase Card Statement Summary,261600 - Human Resources - Travel & Subsistence
Solihull MBC,Adult Social Care,Adult Social Care,McDonalds,25/04/2022,5.21,Purchase Card Statement Summary,261600 - Human Resources - Travel & Subsistence
Solihull MBC,Adult Social Care,Adult Social Care,McDonalds,25/04/2022,5.21,Purchase Card Statement Summary,261600 - Human Resources - Travel & Subsistence
Solihull MBC,Adult Social Care,Adult Social Care,McDonalds,25/04/2022,9.74,Purchase Card Statement Summary,261600 - Human Resources - Travel & Subsistence
Solihull MBC,Adult Social Care,Adult Social Care,McDonalds,25/04/2022,9.92,Purchase Card Statement Summary,261600 - Human Resources - Travel & Subsistence
Solihull MBC,Adult Social Care,Adult Social Care,Melbicks Garden Centre,25/04/2022,112.96,Purchase Card Statement Summary,249999 - Horticultural - Not Elsewhere Classified
Solihull MBC,Adult Social Care,Adult Social Care,National Trust,31/03/2022,153.60,Clients Expenses,201710 - Financial Services - Grants - Charitable
Solihull MBC,Economy and Infrastructure - HRA,Housing Revenue Account,National Tyre Recovery,25/04/2022,563.40,General Debtors,151000 - Consultancy - Business
Solihull MBC,Adult Social Care,Adult Social Care,Netflix Services UK Limit,25/04/2022,5.99,Purchase Card Statement Summary,171111 - Education - Audio Visual
Solihull MBC,Economy and Infrastructure - HRA,Housing Revenue Account,Nextdaycatering.co.uk,25/04/2022,44.78,General Debtors,301200 - Mail Services - Postage
Solihull MBC,Adult Social Care,Adult Social Care,Notcutts Garden,10/03/2022,2.85,Catering Provisions,249999 - Horticultural - Not Elsewhere Classified
Solihull MBC,Childrens Services & Skills,Children & Education Services,Pams Florist,25/04/2022,28.50,Purchase Card Statement Summary,249999 - Horticultural - Not Elsewhere Classified
Solihull MBC,Childrens Services & Skills,Children & Education Services,Park Hotel Moto,25/04/2022,145.50,Purchase Card Statement Summary,261000 - Human Resources - Accommodation
Solihull MBC,Children's Services & Skills,Children & Education Services,Paypal,22/03/2022,20.00,IT Equipment & Software,271600 - Information Communication Technology - Software - Customised & Bespoke
Solihull MBC,Children's Services & Skills,Children & Education Services,Paypal,17/03/2022,29.17,IT Equipment & Software,279999 - Information Communications Technology - Not Elsewhere Classified
Solihull MBC,Children's Services & Skills,Children & Education Services,Paypal,17/03/2022,99.99,IT Equipment & Software,279999 - Information Communications Technology - Not Elsewhere Classified
Solihull MBC,Childrens Services & Skills,Children & Education Services,Paypal,25/04/2022,541.49,Purchase Card Statement Summary,169999 - Domestic Goods - Not Elsewhere Classified
Solihull MBC,Economy and Infrastructure - HRA,Housing Revenue Account,Photobox Limited,25/04/2022,32.16,General Debtors,349999 - Stationery - Not Elsewhere Classified
Solihull MBC,Adult Social Care,Adult Social Care,Plume Of Feathers,04/03/2022,16.28,Clients Expenses,261600 - Human Resources - Travel & Subsistence
Solihull MBC,Adult Social Care,Adult Social Care,Post Office Counter,25/04/2022,453.00,Purchase Card Statement Summary,301200 - Mail Services - Postage
Solihull MBC,Adult Social Care,Adult Social Care,Post Office Counter,25/04/2022,500.00,Purchase Card Statement Summary,301200 - Mail Services - Postage
Solihull MBC,Adult Social Care,Adult Social Care,Post Office Counter,25/04/2022,585.00,Purchase Card Statement Summary,301200 - Mail Services - Postage
Solihull MBC,Adult Social Care,Adult Social Care,Post Office Counter,25/04/2022,1000.00,Purchase Card Statement Summary,301200 - Mail Services - Postage
Solihull MBC,Adult Social Care,Adult Social Care,Post Office Counter,25/04/2022,1000.00,Purchase Card Statement Summary,301200 - Mail Services - Postage
Solihull MBC,Public Health & Commissioning,Central Services to the Public,Poundland Ltd ,15/03/2022,13.33,Materials,169999 - Domestic Goods - Not Elsewhere Classified
Solihull MBC,Public Health,Central Services to the Public,Poundland Ltd ,25/04/2022,94.50,Purchase Card Statement Summary,169999 - Domestic Goods - Not Elsewhere Classified
Solihull MBC,Public Health,Central Services to the Public,Poundland Ltd 1713,25/04/2022,4.50,Purchase Card Statement Summary,169999 - Domestic Goods - Not Elsewhere Classified
Solihull MBC,Adult Social Care,Adult Social Care,Purepay Retail 9582,25/04/2022,50.00,Purchase Card Statement Summary,141000 - Clothing - Children & Adults
Solihull MBC,Resources,Central Services to the Public,Quality Cars And Comme,25/04/2022,495.00,Purchase Card Statement Summary,381000 - Vehicle Management - Commercial
Solihull MBC,Resources,Central Services to the Public,Quality Cars And Comme,25/04/2022,2500.00,Purchase Card Statement Summary,381000 - Vehicle Management - Commercial
Solihull MBC,Children's Services & Skills,Children & Education Services,Redactive Events Ltd,23/03/2022,251.67,Training,151000 - Consultancy - Business
Solihull MBC,Adult Social Care,Adult Social Care,Reservoir,25/04/2022,12.30,Purchase Card Statement Summary,261600 - Human Resources - Travel & Subsistence
Solihull MBC,Public Health,Central Services to the Public,Sainsburys,25/04/2022,9.75,Purchase Card Statement Summary,111200 - Catering - Food & Beverages
Solihull MBC,Adult Social Care,Adult Social Care,Sainsburys S/Mkts,25/03/2022,6.25,Catering Provisions,111200 - Catering - Food & Beverages
Solihull MBC,Adult Social Care,Adult Social Care,Sainsburys Smkts,25/04/2022,2.60,Purchase Card Statement Summary,111200 - Catering - Food & Beverages
Solihull MBC,Adult Social Care,Adult Social Care,Sainsburys Smkts,25/04/2022,5.95,Purchase Card Statement Summary,111200 - Catering - Food & Beverages
Solihull MBC,Adult Social Care,Adult Social Care,Sainsburys Smkts,25/04/2022,7.10,Purchase Card Statement Summary,111200 - Catering - Food & Beverages
Solihull MBC,Adult Social Care,Adult Social Care,Sainsburys Smkts,25/04/2022,11.14,Purchase Card Statement Summary,111200 - Catering - Food & Beverages
Solihull MBC,Adult Social Care,Adult Social Care,Seagull Fish Bar,25/03/2022,19.60,Catering Provisions,261600 - Human Resources - Travel & Subsistence
Solihull MBC,Childrens Services & Skills,Children & Education Services,Severn Trent Water,25/04/2022,583.53,Purchase Card Statement Summary,370000 - Utilities
Solihull MBC,Childrens Services & Skills,Children & Education Services,Severn Trent Water,25/04/2022,583.53,Purchase Card Statement Summary,370000 - Utilities
Solihull MBC,Adult Social Care,Adult Social Care,Sharkninja Europe,25/04/2022,179.99,Purchase Card Statement Summary,211210 - Furniture & Soft Furnishings - Soft Furnishings
Solihull MBC,Adult Social Care,Adult Social Care,Sky Subscription,07/03/2022,55.75,General Creditors,171111 - Education - Audio Visual
Solihull MBC,Economy and Infrastructure - HRA,Housing Revenue Account,SMBC Revenues-Atp,25/04/2022,10.20,General Debtors,151900 - Consultancy - Management
Solihull MBC,Adult Social Care,Adult Social Care,Store Financial Servic,25/04/2022,50.00,Purchase Card Statement Summary,209999 - Financial Services - Not Elsewhere Classified
Solihull MBC,Adult Social Care,Adult Social Care,Stratfordracecourse.Ne,25/04/2022,24.50,Purchase Card Statement Summary,291400 - Arts & Leisure Services - Sport & Fitness
Solihull MBC,Economy and Infrastructure - HRA,Housing Revenue Account,Sumup *Charde Guest Hous,25/04/2022,315.00,General Debtors,261000 - Human Resources - Accommodation
Solihull MBC,Economy and Infrastructure - HRA,Housing Revenue Account,Sumup *Charde Guest Hous,25/04/2022,315.00,General Debtors,261000 - Human Resources - Accommodation
Solihull MBC,Economy and Infrastructure - HRA,Housing Revenue Account,Sumup *Charde Guest Hous,25/04/2022,825.00,General Debtors,261000 - Human Resources - Accommodation
Solihull MBC,Childrens Services & Skills,Children & Education Services,Tesco Gift Card,25/04/2022,40.00,Purchase Card Statement Summary,111200 - Catering - Food & Beverages
Solihull MBC,Adult Social Care,Adult Social Care,Tesco Store 2785,18/03/2022,3.35,Catering Provisions,111200 - Catering - Food & Beverages
Solihull MBC,Adult Social Care,Adult Social Care,Tesco Store 3188,25/04/2022,2.24,Purchase Card Statement Summary,111200 - Catering - Food & Beverages
Solihull MBC,Adult Social Care,Adult Social Care,Tesco Store 3188,21/03/2022,4.77,Catering Provisions,111200 - Catering - Food & Beverages
Solihull MBC,Adult Social Care,Adult Social Care,Tesco Store 3188,07/03/2022,7.00,Furniture & Equipment,111200 - Catering - Food & Beverages
Solihull MBC,Adult Social Care,Adult Social Care,Tesco Store 3188,05/03/2022,8.50,Clients Expenses,111200 - Catering - Food & Beverages
Solihull MBC,Adult Social Care,Adult Social Care,Tesco Store 3188,25/04/2022,12.00,Purchase Card Statement Summary,111200 - Catering - Food & Beverages
Solihull MBC,Adult Social Care,Adult Social Care,Tesco Store 3188,28/03/2022,28.16,Catering Provisions,111200 - Catering - Food & Beverages
Solihull MBC,Adult Social Care,Adult Social Care,Tesco Store 3188,25/04/2022,50.00,Purchase Card Statement Summary,111200 - Catering - Food & Beverages
Solihull MBC,Adult Social Care,Adult Social Care,Tesco Store 3188,25/04/2022,50.00,Purchase Card Statement Summary,111200 - Catering - Food & Beverages
Solihull MBC,Adult Social Care,Adult Social Care,Tesco Store 3188,25/04/2022,150.00,Purchase Card Statement Summary,111200 - Catering - Food & Beverages
Solihull MBC,Adult Social Care,Adult Social Care,Tesco Store 3188,25/04/2022,200.00,Purchase Card Statement Summary,111200 - Catering - Food & Beverages
Solihull MBC,Adult Social Care,Adult Social Care,Tesco Store 3188,25/04/2022,200.00,Purchase Card Statement Summary,111200 - Catering - Food & Beverages
Solihull MBC,Adult Social Care,Adult Social Care,Tesco-Stores 6463,25/04/2022,3.00,Purchase Card Statement Summary,111200 - Catering - Food & Beverages
Solihull MBC,Adult Social Care,Adult Social Care,The Range,25/04/2022,29.99,Purchase Card Statement Summary,169999 - Domestic Goods - Not Elsewhere Classified
Solihull MBC,Childrens Services & Skills,Children & Education Services,Thetrainline.com,25/04/2022,-87.40,Purchase Card Statement Summary,261600 - Human Resources - Travel & Subsistence
Solihull MBC,Childrens Services & Skills,Children & Education Services,Thetrainline.com,25/04/2022,-83.80,Purchase Card Statement Summary,261600 - Human Resources - Travel & Subsistence
Solihull MBC,Childrens Services & Skills,Children & Education Services,Thetrainline.com,25/04/2022,21.71,Purchase Card Statement Summary,261600 - Human Resources - Travel & Subsistence
Solihull MBC,Childrens Services & Skills,Children & Education Services,Thetrainline.com,25/04/2022,30.51,Purchase Card Statement Summary,261600 - Human Resources - Travel & Subsistence
Solihull MBC,Childrens Services & Skills,Children & Education Services,Thetrainline.com,25/04/2022,59.65,Purchase Card Statement Summary,261600 - Human Resources - Travel & Subsistence
Solihull MBC,Children's Services & Skills,Children & Education Services,Thetrainline.com,17/03/2022,93.92,Clients Expenses,261600 - Human Resources - Travel & Subsistence
Solihull MBC,Children's Services & Skills,Children & Education Services,Thetrainline.com,03/03/2022,93.92,Clients Expenses,261600 - Human Resources - Travel & Subsistence
Solihull MBC,Childrens Services & Skills,Children & Education Services,Thetrainline.com,25/04/2022,100.84,Purchase Card Statement Summary,261600 - Human Resources - Travel & Subsistence
Solihull MBC,Childrens Services & Skills,Children & Education Services,Thetrainline.com,25/04/2022,100.84,Purchase Card Statement Summary,261600 - Human Resources - Travel & Subsistence
Solihull MBC,Childrens Services & Skills,Children & Education Services,Thetrainline.com,25/04/2022,143.35,Purchase Card Statement Summary,261600 - Human Resources - Travel & Subsistence
Solihull MBC,Economy and Infrastructure - HRA,Housing Revenue Account,Timpson Ltd,25/04/2022,16.00,General Debtors,149999 - Clothing - Not Elsewhere Classified
Solihull MBC,Adult Social Care,Adult Social Care,TK Maxx,25/04/2022,7.99,Purchase Card Statement Summary,169999 - Domestic Goods - Not Elsewhere Classified
Solihull MBC,Childrens Services & Skills,Children & Education Services,Trainline.com,25/04/2022,34.88,Purchase Card Statement Summary,291300 - Arts & Leisure Services - Performing Arts
Solihull MBC,Childrens Services & Skills,Children & Education Services,Trainline.com,25/04/2022,86.39,Purchase Card Statement Summary,291300 - Arts & Leisure Services - Performing Arts
Solihull MBC,Childrens Services & Skills,Children & Education Services,Trainline.com,25/04/2022,100.84,Purchase Card Statement Summary,291300 - Arts & Leisure Services - Performing Arts
Solihull MBC,Childrens Services & Skills,Children & Education Services,Trainline.com,25/04/2022,100.84,Purchase Card Statement Summary,291300 - Arts & Leisure Services - Performing Arts
Solihull MBC,Childrens Services & Skills,Children & Education Services,Trainline.com,25/04/2022,100.84,Purchase Card Statement Summary,291300 - Arts & Leisure Services - Performing Arts
Solihull MBC,Childrens Services & Skills,Children & Education Services,Trainline.com,25/04/2022,199.08,Purchase Card Statement Summary,291300 - Arts & Leisure Services - Performing Arts
Solihull MBC,Childrens Services & Skills,Children & Education Services,Travelodge Gb0000,25/04/2022,585.40,Purchase Card Statement Summary,261000 - Human Resources - Accommodation
Solihull MBC,Childrens Services & Skills,Children & Education Services,Tvlicensing.co.uk,25/04/2022,159.00,Purchase Card Statement Summary,151900 - Consultancy - Management
Solihull MBC,Economy and Infrastructure,Highways & Transport Services,Tvlicensing.co.uk,25/04/2022,159.00,Purchase Card Statement Summary,151900 - Consultancy - Management
Solihull MBC,Childrens Services & Skills,Children & Education Services,Twinkl,25/04/2022,101.88,Purchase Card Statement Summary,171011 - Education - School Services
Solihull MBC,Adult Social Care,Other Housing Services,Vistaprint,25/03/2022,48.32,Other Fees,151000 - Consultancy - Business
Solihull MBC,Adult Social Care,Adult Social Care,Vue Cinemas,25/04/2022,5.99,Purchase Card Statement Summary,299999 - Arts & Leisure Services - Not Elsewhere Classified
Solihull MBC,Adult Social Care,Adult Social Care,Vue Cinemas,25/04/2022,5.99,Purchase Card Statement Summary,299999 - Arts & Leisure Services - Not Elsewhere Classified
Solihull MBC,Adult Social Care,Adult Social Care,Vue Cinemas,25/04/2022,5.99,Purchase Card Statement Summary,299999 - Arts & Leisure Services - Not Elsewhere Classified
Solihull MBC,Adult Social Care,Adult Social Care,Vue Cinemas,25/04/2022,5.99,Purchase Card Statement Summary,299999 - Arts & Leisure Services - Not Elsewhere Classified
Solihull MBC,Public Health,Adult Social Care,W M Morrison Store,25/04/2022,4.30,Purchase Card Statement Summary,111200 - Catering - Food & Beverages
Solihull MBC,Adult Social Care,Adult Social Care,W M Morrison Store,25/04/2022,100.00,Purchase Card Statement Summary,111200 - Catering - Food & Beverages
Solihull MBC,Adult Social Care,Cultural & Related Services,Waitrose 642 ,22/03/2022,25.49,Catering Provisions,111200 - Catering - Food & Beverages
Solihull MBC,Childrens Services & Skills,Children & Education Services,Wayfair,25/04/2022,-101.99,Purchase Card Statement Summary,161000 - Domestic Goods - Commercial
Solihull MBC,Childrens Services & Skills,Children & Education Services,Wayfair,25/04/2022,101.99,Purchase Card Statement Summary,161000 - Domestic Goods - Commercial
Solihull MBC,Childrens Services & Skills,Children & Education Services,Wayfair,25/04/2022,101.99,Purchase Card Statement Summary,161000 - Domestic Goods - Commercial
Solihull MBC,Adult Social Care,Adult Social Care,West Midland Safari Pa,25/04/2022,50.00,Purchase Card Statement Summary,291300 - Arts & Leisure Services - Performing Arts
Solihull MBC,Adult Social Care,Adult Social Care,West Midland Safari Pa,25/04/2022,50.00,Purchase Card Statement Summary,291300 - Arts & Leisure Services - Performing Arts
Solihull MBC,Childrens Services & Skills,Children & Education Services,West Midlands Trav,25/04/2022,27.50,Purchase Card Statement Summary,361300 - Public Transport - Passenger Transport
Solihull MBC,Childrens Services & Skills,Children & Education Services,West Midlands Trav,25/04/2022,27.50,Purchase Card Statement Summary,361300 - Public Transport - Passenger Transport
Solihull MBC,Childrens Services & Skills,Children & Education Services,West Midlands Trav,25/04/2022,27.50,Purchase Card Statement Summary,361300 - Public Transport - Passenger Transport
Solihull MBC,Childrens Services & Skills,Children & Education Services,West Midlands Trav,25/04/2022,27.50,Purchase Card Statement Summary,361300 - Public Transport - Passenger Transport
Solihull MBC,Childrens Services & Skills,Children & Education Services,West Midlands Trav,25/04/2022,55.00,Purchase Card Statement Summary,361300 - Public Transport - Passenger Transport
Solihull MBC,Childrens Services & Skills,Children & Education Services,West Midlands Trav,25/04/2022,55.00,Purchase Card Statement Summary,361300 - Public Transport - Passenger Transport
Solihull MBC,Childrens Services & Skills,Children & Education Services,West Midlands Trav,25/04/2022,55.00,Purchase Card Statement Summary,361300 - Public Transport - Passenger Transport
Solihull MBC,Economy and Infrastructure,Central Services to the Public,WH Smith ,25/04/2022,35.98,Purchase Card Statement Summary,349999 - Stationery - Not Elsewhere Classified
Solihull MBC,Adult Social Care,Adult Social Care,WH Smith ,25/04/2022,50.00,Purchase Card Statement Summary,349999 - Stationery - Not Elsewhere Classified
Solihull MBC,Public Health & Commissioning,Central Services to the Public,Wilko Retail Limited,15/03/2022,2.80,Materials,169999 - Domestic Goods - Not Elsewhere Classified
Solihull MBC,Economy and Infrastructure - HRA,Housing Revenue Account,Wilko Retail Limited,25/04/2022,5.00,General Debtors,169999 - Domestic Goods - Not Elsewhere Classified
Solihull MBC,Adult Social Care,Adult Social Care,Wilko Retail Limited,25/04/2022,17.50,Purchase Card Statement Summary,169999 - Domestic Goods - Not Elsewhere Classified
Solihull MBC,Economy and Infrastructure - HRA,Housing Revenue Account,Wilko Retail Limited,25/04/2022,24.00,General Debtors,169999 - Domestic Goods - Not Elsewhere Classified
Solihull MBC,Adult Social Care,Adult Social Care,Wilko Retail Limited,25/04/2022,93.40,Purchase Card Statement Summary,169999 - Domestic Goods - Not Elsewhere Classified
Solihull MBC,Public Health,Adult Social Care,Wm Morrisons Store,25/04/2022,20.20,Purchase Card Statement Summary,111200 - Catering - Food & Beverages
Solihull MBC,Public Health,Central Services to the Public,Wm Morrisons Store,25/04/2022,30.70,Purchase Card Statement Summary,111200 - Catering - Food & Beverages
Solihull MBC,Adult Social Care,Other Housing Services,Wm Morrisons Store,30/03/2022,800.00,Other Fees,111200 - Catering - Food & Beverages
Solihull MBC,Adult Social Care,Adult Social Care,www.Bestbuyofficechair,25/04/2022,422.40,Purchase Card Statement Summary,211000 - Furniture & Soft Furnishings - Commercial Furniture
Solihull MBC,Economy and Infrastructure - HRA,Housing Revenue Account,www.Boostpower.co.uk,25/04/2022,10.00,General Debtors,370000 - Utilities
Solihull MBC,Resources,Central Services to the Public,www.Cipfa.org.uk,25/04/2022,270.00,Purchase Card Statement Summary,201711 - Financial Services - Grants - Non-charitable
Solihull MBC,Economy and Infrastructure - HRA,Housing Revenue Account,www.Energybilling.co.uk,25/04/2022,5.00,General Debtors,370000 - Utilities
Solihull MBC,Economy and Infrastructure - HRA,Housing Revenue Account,www.Energybilling.co.uk,25/04/2022,5.00,General Debtors,370000 - Utilities
Solihull MBC,Economy and Infrastructure - HRA,Housing Revenue Account,www.Energybilling.co.uk,25/04/2022,5.00,General Debtors,370000 - Utilities
Solihull MBC,Economy and Infrastructure - HRA,Housing Revenue Account,www.Energybilling.co.uk,25/04/2022,5.00,General Debtors,370000 - Utilities
Solihull MBC,Childrens Services & Skills,Children & Education Services,www.Jdwilliams.co.uk,25/04/2022,3.99,Purchase Card Statement Summary,169999 - Domestic Goods - Not Elsewhere Classified
Solihull MBC,Childrens Services & Skills,Children & Education Services,www.Jdwilliams.co.uk,25/04/2022,10.00,Purchase Card Statement Summary,169999 - Domestic Goods - Not Elsewhere Classified
Solihull MBC,Childrens Services & Skills,Children & Education Services,www.Jdwilliams.co.uk,25/04/2022,249.00,Purchase Card Statement Summary,169999 - Domestic Goods - Not Elsewhere Classified
Solihull MBC,Economy and Infrastructure,Planning & Development Services,www.Labc.uk.com,25/04/2022,-1500.00,Purchase Card Statement Summary,151000 - Consultancy - Business
Solihull MBC,Economy and Infrastructure,Planning & Development Services,www.Labc.uk.com,25/04/2022,576.00,Purchase Card Statement Summary,151000 - Consultancy - Business
Solihull MBC,Resources,Central Services to the Public,www.Moneyclaim.gov,25/04/2022,50.00,Purchase Card Statement Summary,209999 - Financial Services - Not Elsewhere Classified
Solihull MBC,Resources,Central Services to the Public,www.Moneyclaim.gov,25/04/2022,455.00,Purchase Card Statement Summary,209999 - Financial Services - Not Elsewhere Classified
Solihull MBC,Resources,Central Services to the Public,www.Moneyclaim.gov,25/04/2022,455.00,Purchase Card Statement Summary,209999 - Financial Services - Not Elsewhere Classified
Solihull MBC,Resources,Central Services to the Public,www.Moneyclaim.gov,25/04/2022,1738.47,Purchase Card Statement Summary,209999 - Financial Services - Not Elsewhere Classified
Solihull MBC,Childrens Services & Skills,Children & Education Services,www.Safestore.co.uk,25/04/2022,171.12,Purchase Card Statement Summary,192300 - Facilities & Management Services - Storage
Solihull MBC,Economy and Infrastructure - HRA,Housing Revenue Account,www.Screwfix.com,25/04/2022,14.49,General Debtors,102500 - Building Construction Materials - Timber
Solihull MBC,Economy and Infrastructure - HRA,Housing Revenue Account,www.Screwfix.com,25/04/2022,197.47,General Debtors,102500 - Building Construction Materials - Timber
Solihull MBC,Childrens Services & Skills,Children & Education Services,www.Theworks.co.uk,25/04/2022,40.00,Purchase Card Statement Summary,169999 - Domestic Goods - Not Elsewhere Classified
Solihull MBC,Economy and Infrastructure - HRA,Housing Revenue Account,www.Utilita.co.uk,25/04/2022,15.00,General Debtors,370000 - Utilities
Solihull MBC,Economy and Infrastructure - HRA,Housing Revenue Account,www.Utilita.co.uk,25/04/2022,20.00,General Debtors,370000 - Utilities
Solihull MBC,Economy and Infrastructure - HRA,Housing Revenue Account,www.Utilita.co.uk,25/04/2022,40.00,General Debtors,370000 - Utilities
Solihull MBC,Economy and Infrastructure - HRA,Housing Revenue Account,www.Utilita.co.uk,25/04/2022,45.00,General Debtors,370000 - Utilities
